fUST/lending_fUST_20251230
["ID","MTS","AMOUNT","RATE_DAILY","PERIOD"]
[400074271,1767069043374,-300.0,0.00027397,2]
[400074272,1767069043383,-300.0,0.00027397,2]
[400074273,1767069043392,-300.0,0.00027397,2]
[400074274,1767069043402,-300.0,0.00027397,2]
[400074275,1767069043412,-300.0,0.00027397,2]
[400074276,1767069043421,-300.0,0.00027397,2]
[400074277,1767069043431,-300.0,0.00027397,2]
[400074278,1767069043440,-300.0,0.00027397,2]
[400074279,1767069043449,-300.0,0.00027397,2]
[400074280,1767069043459,-300.0,0.00027397,2]
[400074281,1767069043468,-500.0,0.00027397,5]
[400074282,1767069043478,-899.0,0.00027436,2]
[400074283,1767069043490,-899.0,0.00027456,2]
[400074284,1767069043500,-45904.70290236,0.000275,2]
[400074285,1767069043509,-570.11844343,0.00027581,2]
[400074286,1767069043519,-584.51,0.000276,7]
[400074287,1767069043529,-13751.1546507,0.00027653,2]
[400074288,1767069043538,-1135.28,0.00027671,2]
[400074289,1767069043548,-500.0,0.00027675,7]
[400074290,1767069043557,-500.0,0.00027676,7]
[400074291,1767069043566,-899.0,0.00027704,2]
[400074292,1767069043577,-1000.0,0.00027777,5]
[400074293,1767069043587,-151.0,0.000278,16]
[400074294,1767069043596,-899.0,0.0002781,2]
[400074295,1767069043606,-1000.0,0.00027852,30]
[400074296,1767069043616,-1000.0,0.00027852,30]
[400074297,1767069043625,-1000.0,0.00027852,30]
[400074298,1767069043636,-899.0,0.00027861,2]
[400074299,1767069043646,-5000.0,0.00027913,15]
[400074300,1767069043656,-899.0,0.0002793,7]
[400074301,1767069043665,-1135.28,0.00027945,2]
[400074302,1767069043675,-1000.0,0.00027945,5]
[400074303,1767069043684,-250.0,0.00027945,5]
[400074304,1767069043694,-15307.62179137,0.00028,2]
[400074305,1767069043703,-595.83744368,0.00028,2]
[400074306,1767069043713,-519.64420806,0.00028,2]
[400074307,1767069043723,-167.63,0.00028,7]
[400074308,1767069043733,-467.57627294,0.00028075,18]
[400074309,1767069043743,-899.0,0.00028095,2]
[400074310,1767069043753,-1135.5,0.00028219,2]
[400074311,1767069043762,-1341.07728692,0.00028493,5]
[400074312,1767069043776,-350.0,0.00028493,5]
[400074313,1767069043789,-229718.30083605,0.000285,7]
[400074314,1767069043804,-151.0,0.000285,7]
[400074315,1767069043817,-607.84494836,0.00028535,2]
[400074316,1767069043830,-307.3,0.0002856,3]
[400074317,1767069043841,-2000.0,0.00028586,7]
[400074318,1767069043853,-172.96149317,0.00028587,5]
[400074319,1767069043866,-204.33,0.00028635,30]
[400074320,1767069043877,-9143.73,0.000287,2]
[400074321,1767069043889,-1817.93,0.000287,3]
[400074322,1767069043902,-3256.62662481,0.0002876,2]
[400074323,1767069043916,-19127.78853029,0.0002876,2]
[400074324,1767069043927,-1055.258506,0.0002876,7]
[400074325,1767069043939,-1055.258506,0.0002876,7]
[400074326,1767069043951,-1055.258506,0.0002876,7]
[400074327,1767069043963,-1055.258506,0.0002876,7]
[400074328,1767069043976,-5000.0,0.00028765,15]
[400074329,1767069043988,-500.0,0.00028767,7]
[400074330,1767069044001,-37243.040921,0.0002879,2]
[400074331,1767069044012,-19613.6657303,0.0002879,2]
[400074332,1767069044024,-333614.75325092,0.000288,3]
[400074333,1767069044037,-172.33062748,0.000288,7]
[400074334,1767069044048,-1055.258506,0.000288,7]
[400074335,1767069044061,-1055.258506,0.000288,7]
[400074336,1767069044073,-1055.258506,0.000288,7]
[400074337,1767069044084,-1055.25851,0.000288,7]
[400074338,1767069044096,-151.94,0.000288,2]
[400074339,1767069044106,-1268.94,0.000289,14]
[400074340,1767069044116,-584.51,0.000289,7]
[400074341,1767069044128,-151.94,0.000289,2]
[400074342,1767069044139,-151.94,0.000289,2]
[400074343,1767069044151,-2001.72141218,0.0002896,120]
[400074345,1767069044163,-5000.0,0.00028999,15]
[400074347,1767069044175,-206.01879,0.00029,120]
[400074348,1767069044187,-889.49824385,0.00029,2]
[400074349,1767069044198,-28341.24003385,0.00029,20]
[400074350,1767069044214,-2406.38515982,0.00029,10]
[400074351,1767069044226,-151.94,0.00029,2]
[400074352,1767069044239,-500.0,0.00029039,7]
[400074353,1767069044252,-450.0,0.00029041,5]
[400074354,1767069044265,-13751.1546507,0.00029044,2]
[400074355,1767069044276,-500.0,0.00029071,7]
[400074356,1767069044287,-151.94,0.000291,2]
[400074357,1767069044297,-500.0,0.00029104,7]
[400074358,1767069044308,-5000.0,0.0002914,15]
[400074359,1767069044318,-186.31,0.000292,2]
[400074361,1767069044332,-151.94,0.000292,2]
[400074363,1767069044345,-151.94,0.000293,2]
[400074364,1767069044359,-151.94,0.000294,2]
[400074365,1767069044369,-384.21694444,0.000295,120]
[400074366,1767069044379,-612.17636139,0.00029581,2]
[400074367,1767069044391,-550.0,0.00029589,5]
[400074368,1767069044402,-500.0,0.0002967,7]
[400074369,1767069044414,-2000.0,0.00029854,7]
[400074370,1767069044426,-500.0,0.00029898,7]
[400074371,1767069044436,-162.77,0.000299,7]
[400074372,1767069044447,-306.49,0.00029937,30]
[400074373,1767069044457,-5000.0,0.00029999,15]
[400074374,1767069044468,-1058.0,0.0003,2]
[400074375,1767069044479,-412.34289824,0.0003,10]
[400074376,1767069044489,-263.0797124,0.0003,2]
[400074377,1767069044500,-47474.13072234,0.0003,2]
[400074378,1767069044512,-428.14042977,0.0003,120]
[400074379,1767069044523,-843.31673468,0.0003,30]
[400074380,1767069044534,-385.78785205,0.0003,120]
[400074381,1767069044546,-1500.0,0.0003,45]
[400074382,1767069044557,-509.61616711,0.0003,30]
[400074383,1767069044568,-265.86918879,0.0003,120]
[400074384,1767069044579,-706.67383558,0.0003,120]
[400074385,1767069044590,-307.3,0.00030082,4]
[400074386,1767069044600,-9143.73,0.000301,2]
[400074387,1767069044611,-284.92902915,0.000301,120]
[400074388,1767069044622,-1002.0,0.000301,30]
[400074389,1767069044632,-584.51,0.000301,7]
[400074390,1767069044644,-650.0,0.00030137,5]
[400074391,1767069044655,-151.0,0.000302,14]
[400074392,1767069044665,-1268.94,0.000303,14]
[400074393,1767069044678,-5000.0,0.00030367,15]
[400074394,1767069044689,-13751.1546507,0.00030436,2]
[400074395,1767069044700,-1000.0,0.00030637,30]
[400074396,1767069044711,-1000.0,0.00030637,30]
[400074397,1767069044721,-1000.0,0.00030637,30]
[400074398,1767069044732,-715.0,0.00030637,30]
[400074399,1767069044743,-750.0,0.00030685,5]
[400074400,1767069044754,-500.0,0.00030686,7]
[400074401,1767069044766,-160.0,0.00030709,3]
[400074402,1767069044777,-166.33,0.000308,7]
[400074403,1767069044788,-500.0,0.00030809,7]
[400074404,1767069044799,-500.0,0.00030868,7]
[400074405,1767069044810,-1391.47,0.00030958,30]
[400074406,1767069044822,-305.77525825,0.0003099,2]
[400074407,1767069044833,-595.24264333,0.00031,120]
[400074408,1767069044843,-308.96700691,0.00031,120]
[400074409,1767069044854,-524.56792184,0.00031,120]
[400074410,1767069044865,-819.89848837,0.00031,120]
[400074411,1767069044875,-765.5949178,0.00031,120]
[400074412,1767069044886,-607.9074905,0.00031,120]
[400074413,1767069044896,-202.55685779,0.00031,120]
[400074414,1767069044907,-186.31,0.00031,2]
[400074415,1767069044918,-1157.42344862,0.00031,120]
[400074416,1767069044929,-541.02927458,0.00031,120]
[400074417,1767069044939,-469.51361326,0.00031,120]
[400074418,1767069044950,-160.96956782,0.00031,120]
[400074419,1767069044961,-173.91029313,0.00031,120]
[400074420,1767069044971,-180.65011172,0.00031,120]
[400074421,1767069044982,-201.19436054,0.00031,120]
[400074422,1767069044992,-167.28493125,0.00031,120]
[400074423,1767069045003,-28633.4661558,0.00031,120]
[400074424,1767069045139,-1356.72940716,0.00031,120]
[400074425,1767069045151,-2554.1920992,0.00031,5]
[400074426,1767069045161,-5000.0,0.00031005,2]
[400074427,1767069045170,-5003.0,0.00031037,30]
[400074428,1767069045179,-256.5,0.00031037,30]
[400074429,1767069045188,-13931.54620908,0.0003112,2]
[400074430,1767069045197,-2000.0,0.00031122,7]
[400074431,1767069045207,-915.55215583,0.00031233,5]
[400074432,1767069045220,-408.65,0.00031238,30]
[400074433,1767069045230,-160.0,0.00031289,4]
[400074434,1767069045239,-584.51,0.000313,7]
[400074435,1767069045248,-500.0,0.00031475,7]
[400074436,1767069045257,-9143.73,0.000315,2]
[400074437,1767069045267,-5000.0,0.00031505,15]
[400074438,1767069045276,-1391.47,0.00031506,31]
[400074439,1767069045285,-500.0,0.0003152,7]
[400074440,1767069045295,-654.23427935,0.00031581,2]
[400074441,1767069045304,-5000.0,0.00031594,15]
[400074442,1767069045313,-307.3,0.00031604,4]
[400074443,1767069045324,-1268.94,0.000317,14]
[400074444,1767069045333,-13751.1546507,0.00031827,2]
[400074445,1767069045342,-160.0,0.00031869,5]
[400074446,1767069045351,-595.24264333,0.000319,120]
[400074447,1767069045359,-524.56792184,0.000319,120]
[400074448,1767069045369,-819.89848837,0.000319,120]
[400074449,1767069045378,-765.5949178,0.000319,120]
[400074450,1767069045387,-607.9074905,0.000319,120]
[400074451,1767069045396,-202.55685779,0.000319,120]
[400074452,1767069045406,-1157.42344862,0.000319,120]
[400074453,1767069045415,-541.02927458,0.000319,120]
[400074454,1767069045425,-469.51361326,0.000319,120]
[400074455,1767069045435,-173.91029313,0.000319,120]
[400074456,1767069045444,-180.65011172,0.000319,120]
[400074457,1767069045453,-201.19436054,0.000319,120]
[400074458,1767069045462,-167.28493125,0.000319,120]
[400074459,1767069045472,-11247.79533795,0.000319,2]
[400074460,1767069045481,-800.0,0.00031932,7]
[400074461,1767069045491,-2000.01,0.00032,30]
[400074462,1767069045500,-200.51904304,0.00032,2]
[400074463,1767069045511,-1020.0,0.00032,7]
[400074464,1767069045520,-5000.0,0.00032053,15]
[400074465,1767069045530,-1391.47,0.00032054,32]
[400074466,1767069045540,-500.0,0.0003216,2]
[400074467,1767069045549,-2000.0,0.0003239,7]
[400074468,1767069045559,-3000.0,0.000324,120]
[400074470,1767069045569,-160.0,0.00032449,6]
[400074472,1767069045579,-510.82,0.0003254,30]
[400074474,1767069045588,-151.0,0.000326,16]
[400074476,1767069045599,-5000.0,0.00032601,15]
[400074478,1767069045608,-1391.47,0.00032602,33]
[400074479,1767069045618,-5000.0,0.00032641,3]
[400074480,1767069045627,-5000.0,0.00032821,15]
[400074481,1767069045637,-575.02,0.00032876,2]
[400074482,1767069045647,-575.02,0.00032876,2]
[400074483,1767069045657,-575.02,0.00032876,2]
[400074484,1767069045667,-575.02,0.00032876,2]
[400074485,1767069045676,-575.02,0.00032876,2]
[400074486,1767069045686,-575.02,0.00032876,2]
[400074487,1767069045695,-575.02,0.00032876,2]
[400074488,1767069045704,-575.02,0.00032876,2]
[400074489,1767069045714,-575.02,0.00032876,2]
[400074490,1767069045723,-575.02,0.00032876,2]
[400074491,1767069045733,-575.02,0.00032876,2]
[400074492,1767069045742,-575.02,0.00032876,2]
[400074493,1767069045751,-575.02,0.00032876,2]
[400074494,1767069045760,-575.02,0.00032876,2]
[400074495,1767069045770,-575.02,0.00032876,2]
[400074496,1767069045779,-575.02,0.00032876,2]
[400074497,1767069045789,-575.02,0.00032876,2]
[400074498,1767069045798,-575.02,0.00032876,2]
[400074499,1767069045808,-575.02,0.00032876,2]
[400074500,1767069045817,-575.02,0.00032876,2]
[400074501,1767069045826,-575.02,0.00032876,2]
[400074502,1767069045836,-575.02,0.00032876,2]
[400074503,1767069045845,-575.02,0.00032876,2]
[400074504,1767069045854,-575.2218476,0.00032876,2]
[400074505,1767069045864,-965.70893362,0.00032876,120]
[400074506,1767069045873,-233.58774294,0.00032876,2]
[400074507,1767069045883,-5000.0,0.00032876,10]
[400074508,1767069045893,-794.48,0.00032877,10]
[400074509,1767069045903,-1360.44,0.00032877,10]
[400074510,1767069045912,-500.0,0.00032877,5]
[400074511,1767069045921,-595.24264333,0.000329,120]
[400074512,1767069045930,-524.56792184,0.000329,120]
[400074513,1767069045939,-819.89848837,0.000329,120]
[400074514,1767069045948,-765.5949178,0.000329,120]
[400074515,1767069045957,-607.9074905,0.000329,120]
[400074516,1767069045967,-1157.42344862,0.000329,120]
[400074517,1767069045977,-541.02927458,0.000329,120]
[400074518,1767069045986,-469.51361326,0.000329,120]
[400074519,1767069045995,-180.65011172,0.000329,120]
[400074520,1767069046004,-167.28493125,0.000329,120]
[400074521,1767069046014,-1016.0,0.00033,7]
[400074522,1767069046023,-160.0,0.00033029,7]
[400074523,1767069046032,-307.3,0.00033126,5]
[400074524,1767069046042,-5000.0,0.00033149,15]
[400074525,1767069046051,-1391.47,0.0003315,34]
[400074526,1767069046060,-637.543122,0.00033165,2]
[400074527,1767069046069,-5000.0,0.00033199,15]
[400074528,1767069046079,-9143.73,0.000332,14]
[400074529,1767069046088,-225.2411399,0.000332,117]
[400074530,1767069046097,-13751.1546507,0.00033219,2]
[400074531,1767069046106,-1241.1395,0.0003322,30]
[400074532,1767069046115,-608.45279331,0.00033385,2]
[400074533,1767069046125,-1000.0,0.00033425,5]
[400074534,1767069046134,-696.29219731,0.00033581,120]
[400074535,1767069046144,-160.0,0.00033609,8]
[400074536,1767069046153,-500.0,0.0003365,10]
[400074537,1767069046163,-500.0,0.0003365,10]
[400074538,1767069046172,-500.0,0.0003365,30]
[400074539,1767069046181,-500.0,0.0003365,10]
[400074540,1767069046190,-500.0,0.0003365,10]
[400074541,1767069046199,-500.0,0.0003365,10]
[400074542,1767069046208,-500.0,0.0003365,10]
[400074543,1767069046221,-500.0,0.0003365,30]
[400074544,1767069046231,-500.0,0.0003365,30]
[400074545,1767069046240,-500.0,0.0003365,10]
[400074546,1767069046249,-500.0,0.0003365,10]
[400074547,1767069046259,-600.99893326,0.0003365,10]
[400074548,1767069046268,-500.0,0.0003365,10]
[400074549,1767069046278,-500.0,0.0003365,30]
[400074550,1767069046287,-500.0,0.0003365,10]
[400074551,1767069046296,-2000.0,0.00033659,7]
[400074552,1767069046306,-5000.0,0.00033697,15]
[400074553,1767069046315,-1391.47,0.00033698,35]
[400074554,1767069046324,-250.0,0.00033699,5]
[400074555,1767069046333,-1000.0,0.00033701,30]
[400074556,1767069046342,-1000.0,0.00033701,30]
[400074557,1767069046351,-1000.0,0.00033701,30]
[400074558,1767069046361,-612.98,0.00033841,30]
[400074559,1767069046370,-5000.0,0.00033899,15]
[400074560,1767069046379,-595.24264333,0.000339,120]
[400074561,1767069046388,-524.56792184,0.000339,120]
[400074562,1767069046397,-819.89848837,0.000339,120]
[400074563,1767069046407,-765.5949178,0.000339,120]
[400074564,1767069046417,-607.9074905,0.000339,120]
[400074565,1767069046426,-1157.42344862,0.000339,120]
[400074566,1767069046435,-541.02927458,0.000339,120]
[400074567,1767069046444,-469.51361326,0.000339,120]
[400074568,1767069046452,-1500.0,0.00033973,5]
[400074569,1767069046462,-5000.0,0.00033999,14]
[400074570,1767069046471,-1032.28132267,0.00034,2]
[400074571,1767069046481,-50000.0,0.00034,14]
[400074572,1767069046490,-1016.0,0.00034,7]
[400074573,1767069046500,-5000.0,0.00034048,15]
[400074574,1767069046509,-160.0,0.00034189,9]
[400074575,1767069046519,-5000.0,0.00034217,2]
[400074576,1767069046528,-5000.0,0.00034245,15]
[400074577,1767069046538,-1391.47,0.00034246,36]
[400074578,1767069046548,-387.48177754,0.000343,7]
[400074579,1767069046558,-713.5841892,0.000343,7]
[400074580,1767069046568,-1549.92711015,0.000343,7]
[400074581,1767069046577,-154.3763159,0.00034356,30]
[400074582,1767069046587,-593604.749838,0.000344,10]
[400074583,1767069046597,-26865.9171025,0.0003442,2]
[400074584,1767069046607,-21201.1084,0.0003444,30]
[400074585,1767069046616,-5000.0,0.0003452,5]
[400074586,1767069046626,-5000.0,0.0003452,15]
[400074587,1767069046635,-737.43404646,0.00034521,5]
[400074588,1767069046645,-350.0,0.00034521,5]
[400074589,1767069046655,-5000.0,0.00034544,7]
[400074590,1767069046664,-416.0,0.0003458,2]
[400074591,1767069046673,-416.0,0.0003458,2]
[400074592,1767069046682,-1993.111595,0.000346,20]
[400074593,1767069046691,-151.0,0.000346,31]
[400074594,1767069046701,-151.000001,0.000346,31]
[400074595,1767069046710,-13751.1546507,0.0003461,2]
[400074596,1767069046719,-307.3,0.00034648,6]
[400074597,1767069046728,-5000.0,0.00034649,4]
[400074598,1767069046738,-440014.49980533,0.0003465,4]
[400074599,1767069046842,-1618.48555285,0.0003465,4]
[400074600,1767069046853,-418.49770858,0.0003465,4]
[400074601,1767069046872,-8858.38237819,0.0003465,4]
[400074602,1767069046883,-10521.17056281,0.0003465,4]
[400074603,1767069046894,-1964.87957539,0.0003465,4]
[400074604,1767069046951,-467.57627294,0.0002929,19]
[400074605,1767069046960,-151.94,0.000295,2]
[400074606,1767069046969,-151.94,0.000296,2]
[400074607,1767069046978,-151.94,0.000297,2]
[400074608,1767069046987,-151.94,0.000298,2]
[400074609,1767069046996,-467.57627294,0.00030505,21]
[400074610,1767069047005,-467.57627294,0.0003172,22]
[400074611,1767069047014,-467.57627294,0.00032935,23]
[400074612,1767069047023,-500.0,0.0003365,10]
[400074613,1767069047032,-467.57627294,0.0003415,25]
[400074614,1767069047042,-2634.623634,0.0003465,4]
[400074615,1767069047055,-97189.99170401,0.0003465,4]
[400074616,1767069047912,-3e-08,0.0003465,4]
[400074617,1767069048633,-207.78497129,0.0003465,4]
[400074618,1767069048792,-19.95472327,0.00021698,2]
[400074619,1767069048904,-514.59289517,0.00021698,2]
[400074620,1767069048914,-472.95202256,0.00021917,2]
[400074621,1767069048923,-249.92808363,0.00021917,2]
[400074622,1767069048932,-151.0,0.00024142,2]
[400074623,1767069048941,-151.0,0.00024142,2]
[400074624,1767069048950,-176.822947,0.000249,7]
[400074625,1767069048959,-151.0,0.000249,7]
[400074626,1767069048968,-151.0,0.0002599,7]
[400074627,1767069048978,-43.34243076,0.0002849,10]
[400074628,1767069049033,-232.13906843,0.00021917,2]
[400074629,1767069049042,-151.0,0.00024142,2]
[400074630,1767069049051,-151.0,0.00027387,7]
[400074631,1767069049060,-1090.35756924,0.0002849,10]
[400074632,1767069049069,-151.0,0.000285,7]
[400074633,1767069049078,-151.94,0.000298,2]
[400074634,1767069049087,-151.94,0.000299,2]
[400074635,1767069049097,-151.94,0.0003,2]
[400074636,1767069049111,-151.94,0.000301,2]
[400074637,1767069049121,-151.94,0.000302,2]
[400074638,1767069049130,-151.94,0.000303,2]
[400074639,1767069049140,-151.94,0.000304,2]
[400074640,1767069049149,-151.94,0.000305,2]
[400074641,1767069049159,-151.94,0.000306,2]
[400074642,1767069049168,-151.94,0.000307,2]
[400074643,1767069049177,-4801.0,0.000315,30]
[400074644,1767069049186,-37763.1243683,0.0003465,4]
[400074645,1767069069222,865.45238156,0.00012888,2]
[400074646,1767069108470,500.0,0.0001158,2]
[400074647,1767069108529,340.96994274,0.0001158,2]
[400074650,1767069216796,437.41,0.00012291,2]
[400074651,1767069217404,874.83,0.00012877,2]
[400074652,1767069268535,167.41662162,0.0001253,2]
[400074653,1767069297181,420.71,0.00012354,2]
[400074655,1767069376890,415.36,0.00012311,2]
[400074656,1767069384879,233.74,0.00028767,120]
[400074657,1767069416469,233.74,0.00028767,120]
[400074658,1767069445757,5000.0,0.00012893,2]
[400074659,1767069447428,233.74,0.00028767,120]
[400074660,1767069456463,410.07,0.00012283,2]
[400074661,1767069456853,820.14,0.00012868,2]
[400074662,1767069535970,408.72,0.00012273,2]
[400074663,1767069536371,817.43,0.00012858,2]
[400074664,1767069542821,2128.29,0.0001289,2]
[400074665,1767069542843,142.04,0.0001289,2]
[400074666,1767069578050,173.51331065,0.00012638,2]
[400074667,1767069615612,393.11,0.00012484,2]
[400074668,1767069696087,393.31,0.00012488,2]
[400074669,1767069777087,388.3,0.00012532,2]
[400074673,1767069857299,383.36,0.0001251,2]
[400074674,1767069879342,999.0,0.00012326,2]
[400074675,1767069897481,4293.78724861,0.00012894,2]
[400074676,1767069937330,382.38,0.0001253,2]
[400074679,1767070007553,3553.18275139,0.00012446,2]
[400074680,1767070007574,4488.26840831,0.00012446,2]
[400074681,1767070017693,377.52,0.00012532,2]
[400074688,1767070097971,375.31,0.00012509,2]
[400074698,1767070121509,169.943092,6.184e-05,2]
[400074699,1767070121615,169.943092,0.00012368,2]
[400074719,1767070177738,370.54,0.00012565,2]
[400074741,1767070231965,-196.00035387,0.0001314,2]
[400074743,1767070231976,-606.0,0.0001314,2]
[400074745,1767070231985,-20.85055768,0.00013163,2]
[400074747,1767070231996,-534.54761844,0.00013163,2]
[400074865,1767070237975,-185.67182388,0.00013163,2]
[400074866,1767070237985,-300.0,0.00013268,2]
[400074867,1767070237994,-300.0,0.00013268,2]
[400074868,1767070238005,-300.0,0.00013268,2]
[400074869,1767070238014,-500.0,0.00013269,2]
[400074870,1767070238023,-500.0,0.00013269,2]
[400074871,1767070238033,-500.0,0.00013269,2]
[400074872,1767070238042,-500.0,0.00013269,2]
[400074873,1767070238051,-500.0,0.00013269,2]
[400074874,1767070238060,-500.0,0.00013269,2]
[400074876,1767070238069,-500.0,0.00013269,2]
[400074878,1767070238079,-500.0,0.00013269,2]
[400074880,1767070238088,-500.0,0.00013269,2]
[400074882,1767070238097,-500.0,0.00013269,2]
[400074884,1767070238106,-443.67132619,0.00013269,2]
[400074886,1767070238115,-500.0,0.00013269,2]
[400074887,1767070238124,-500.0,0.00013269,2]
[400074889,1767070238134,-500.0,0.00013269,2]
[400074891,1767070238143,-500.0,0.00013269,2]
[400074893,1767070238153,-500.0,0.00013269,2]
[400074895,1767070238162,-500.0,0.00013269,2]
[400074897,1767070238171,-500.0,0.00013269,2]
[400074899,1767070238180,-500.0,0.00013269,2]
[400074900,1767070238189,-500.0,0.00013269,2]
[400074902,1767070238197,-500.0,0.00013269,2]
[400074904,1767070238207,-278.0362402,0.00013269,2]
[400074906,1767070238216,-500.0,0.00013269,2]
[400074908,1767070238225,-175.90587103,0.00013269,2]
[400074910,1767070238235,-500.0,0.00013269,2]
[400074912,1767070238244,-500.0,0.00013269,2]
[400074914,1767070238255,-175.98893649,0.00013269,2]
[400074915,1767070238264,-500.0,0.00013269,2]
[400074917,1767070238273,-500.0,0.00013269,2]
[400074919,1767070238283,-500.0,0.00013269,2]
[400074921,1767070238292,-1200.0,0.00013269,2]
[400074923,1767070238301,-7610.47702556,0.0001327,2]
[400074925,1767070238310,-500.0,0.00013273,2]
[400074927,1767070238319,-500.0,0.00013273,2]
[400074928,1767070238328,-500.0,0.00013273,2]
[400074930,1767070238338,-268.17522063,0.00013273,2]
[400074932,1767070238347,-500.0,0.00013273,2]
[400074934,1767070238356,-500.0,0.00013273,2]
[400074935,1767070238366,-500.0,0.00013273,2]
[400074936,1767070238375,-500.0,0.00013273,2]
[400074937,1767070238384,-500.0,0.00013273,2]
[400074938,1767070238394,-183.67454661,0.00013437,2]
[400074939,1767070238403,-679.24460458,0.00013448,2]
[400074940,1767070238412,-500.0,0.00013537,2]
[400074941,1767070238421,-300.0,0.00013537,2]
[400074942,1767070238432,-300.0,0.00013537,2]
[400074943,1767070238441,-300.0,0.00013537,2]
[400074944,1767070238451,-300.0,0.00013537,2]
[400074945,1767070238460,-300.0,0.00013537,2]
[400074946,1767070238469,-300.0,0.00013537,2]
[400074948,1767070238478,-300.0,0.00013537,2]
[400074949,1767070238488,-300.0,0.00013537,2]
[400074951,1767070238497,-300.0,0.00013537,2]
[400074953,1767070238508,-300.0,0.00013537,2]
[400074955,1767070238518,-300.0,0.00013537,2]
[400074957,1767070238528,-300.0,0.00013537,2]
[400074959,1767070238537,-300.0,0.00013537,2]
[400074961,1767070238546,-300.0,0.00013537,2]
[400074963,1767070238556,-300.0,0.00013537,2]
[400074965,1767070238565,-500.0,0.00013699,2]
[400074967,1767070238574,-500.0,0.00013699,2]
[400074968,1767070238584,-1111.61,0.00013761,2]
[400074970,1767070238593,-158.0535729,0.00013811,2]
[400074972,1767070238602,-500.0,0.00013819,2]
[400074974,1767070238611,-311.65444025,0.00013819,2]
[400074976,1767070238623,-500.0,0.00013819,2]
[400074978,1767070238634,-500.0,0.00013819,2]
[400074980,1767070238643,-500.0,0.00013819,2]
[400074982,1767070238651,-500.0,0.00013819,2]
[400074983,1767070238660,-500.0,0.00013819,2]
[400074985,1767070238669,-186.28221053,0.00013819,2]
[400074987,1767070238679,-500.0,0.00013819,2]
[400074989,1767070238688,-500.0,0.00013819,2]
[400074991,1767070238697,-500.0,0.00013819,2]
[400074993,1767070238706,-500.0,0.00013819,2]
[400074995,1767070238715,-500.0,0.00013819,2]
[400074997,1767070238724,-500.0,0.00013819,2]
[400074999,1767070238733,-500.0,0.00013819,2]
[400075000,1767070238742,-500.0,0.00013819,2]
[400075001,1767070238753,-500.0,0.00013819,2]
[400075002,1767070238762,-363.44472311,0.00013819,2]
[400075003,1767070238771,-518.30844147,0.00013821,2]
[400075004,1767070238780,-1000.0,0.00013821,2]
[400075005,1767070238790,-1000.0,0.00013821,2]
[400075006,1767070238799,-1000.0,0.00013821,2]
[400075007,1767070238808,-1000.0,0.00013821,2]
[400075008,1767070238818,-886.7907358,0.00013821,2]
[400075009,1767070238827,-1000.0,0.00013821,2]
[400075010,1767070238837,-1000.0,0.00013821,2]
[400075011,1767070238846,-500.0,0.00014037,2]
[400075012,1767070238856,-600.0,0.00014096,2]
[400075013,1767070238866,-1000.0,0.00014247,2]
[400075014,1767070238875,-1000.0,0.00014247,2]
[400075015,1767070238885,-500.0,0.00014268,2]